bitfinex/quotes_ETHUSD_20250722
["timestamp","ask_amount","ask_price","bid_price","bid_amount"]
[1753175905627,3.51774307,3626.0,3625.9,0.25573541]
[1753175905831,3.09014307,3626.0,3625.9,0.25573541]
[1753175906000,2.75854459,3625.1,3625.0,0.4584]
[1753175906189,0.33228317,3626.0,3625.1,0.1376]
[1753175906190,0.1376,3625.7,3625.1,0.1376]
[1753175906391,2.75846849,3625.2,3625.1,0.1227]
[1753175906590,0.1376,3625.7,3625.1,0.1227]
[1753175906796,0.1376,3625.7,3624.9,4.717]
[1753175906797,2.75824124,3625.5,3624.9,5.1754]
[1753175906995,2.75824124,3625.5,3625.4,0.1376]
[1753175908423,3.30987533,3625.5,3625.4,0.1376]
[1753175908578,2.75846849,3625.2,3625.1,4.709]
[1753175908780,2.75854459,3625.1,3625.0,0.1376]
[1753175908980,0.97928487,3625.1,3623.9,0.7503]
[1753175909184,2.75894202,3624.6,3624.5,0.1376]
[1753175909583,2.75945804,3623.9,3623.8,0.1376]
[1753175910689,3.18705804,3623.9,3623.1,4.704]
[1753175910935,2.75966944,3623.7,3623.6,0.1376]
[1753175911132,0.1376,3624.2,3623.6,0.1376]
[1753175911333,4.703,3624.6,3623.6,0.1376]
[1753175911334,5.1306,3624.6,3623.6,0.1376]
[1753175911636,2.75961034,3623.7,3623.6,0.1376]
[1753175911806,2.75955399,3623.8,3623.6,0.1376]
[1753175912008,2.75961034,3623.7,3623.6,0.1376]
[1753175912203,0.1376,3624.2,3623.6,0.1376]
[1753175912401,0.9375,3624.7,3623.6,1.1258]
[1753175912602,0.9375,3624.7,3623.1,0.4594]
[1753175912603,0.002,3623.7,3623.1,0.4594]
[1753175912919,0.002,3623.7,3623.6,0.1376]
[1753175913121,2.76161034,3623.7,3623.6,0.1376]
[1753175913322,2.76161034,3623.7,3623.1,0.4594]
[1753175913522,0.002,3623.7,3623.3,0.1376]
[1753175914134,0.002,3623.7,3623.4,0.4584]
[1753175914340,0.002,3623.7,3623.6,2.89728649]
[1753175914512,0.002,3623.7,3623.6,8.36738649]
[1753175914718,2.89631442,3624.9,3624.2,2.7591948]
[1753175915127,0.1376,3624.9,3624.3,0.1376]
[1753175915439,2.758558,3625.1,3624.5,2.8965964]
[1753175915634,1.31193409,3625.5,3624.6,4.06271437]
[1753175915838,0.1376,3625.8,3625.0,0.1376]
[1753175916005,0.7603,3626.0,3625.1,3.24452812]
[1753175916201,0.1376,3626.1,3625.2,0.4584]
[1753175916407,0.002,3626.4,3625.8,0.1376]
[1753175916740,0.002,3626.4,3626.2,2.75767953]
[1753175916901,0.002,3626.4,3626.3,0.16517631]
[1753175917105,0.002,3626.4,3626.3,2.89523174]
[1753175917439,0.002,3626.4,3626.3,3.38120805]
[1753175917748,0.002,3626.4,3626.3,4.80250164]
[1753175918042,0.002,3626.4,3626.3,5.05815241]
[1753175918935,0.002,3626.4,3626.3,8.05815241]
[1753175919135,0.002,3626.4,3626.3,8.03044481]
[1753175919335,0.002,3626.4,3626.3,12.71144481]
[1753175919541,0.002,3626.8,3626.7,6.52102759]
[1753175919840,0.002,3626.8,3626.7,7.70439215]
[1753175920004,0.002,3626.8,3626.7,8.30039215]
[1753175920953,0.002,3626.8,3626.7,4.07829215]
[1753175921147,0.002,3626.8,3626.7,0.25551948]
[1753175921958,0.002,3626.8,3626.7,3.47124707]
[1753175922250,0.002,3626.8,3626.7,0.71391948]
[1753175922451,0.002,3626.8,3626.7,8.14824707]
[1753175922643,0.002,3626.8,3626.7,9.26307178]
[1753175922841,0.002,3626.8,3626.7,4.58607178]
[1753175923042,0.002,3626.8,3626.7,9.26207178]
[1753175923232,0.002,3626.8,3626.7,8.14724707]
[1753175923434,0.002,3626.8,3626.7,3.47124707]
[1753175923643,0.002,3626.8,3626.7,8.14424707]
[1753175924021,0.002,3626.8,3626.7,0.71391948]
[1753175924221,0.002,3626.8,3626.7,8.14124707]
[1753175924459,0.002,3626.8,3626.7,4.56387704]
[1753175924627,0.002,3626.8,3626.7,9.23387704]
[1753175924961,0.002,3627.2,3626.8,2.75723278]
[1753175925147,0.002,3627.2,3627.1,2.75702351]
[1753175925455,0.002,3627.2,3627.1,7.67954299]
[1753175925765,0.002,3627.2,3627.1,4.92151948]
[1753175926542,0.002,3627.2,3627.1,8.13694299]
[1753175927265,0.002,3627.2,3627.1,8.93194299]
[1753175928044,0.002,3627.2,3627.1,11.93194299]
[1753175928248,0.002,3627.2,3627.1,14.83194299]
[1753175928459,0.002,3627.2,3627.1,13.69085138]
[1753175928845,1e-08,3627.2,3627.1,13.69085138]
[1753175929437,2.75497911,3629.8,3627.8,0.8304]
[1753175929771,2.75585875,3628.7,3628.0,2.7562945]
[1753175930074,2.75563755,3629.0,3628.2,2.75618764]
[1753175930274,2.75545903,3629.2,3628.5,2.75595578]
[1753175930475,2.7552031,3629.5,3628.6,7.66239077]
[1753175930638,2.75513921,3629.6,3628.7,0.25472314]
[1753175930838,1.2462,3629.8,3628.8,0.25472314]
[1753175931041,3.0,3629.7,3629.3,0.1376]
[1753175931239,2.75520044,3629.5,3629.4,0.25472314]
[1753175931636,0.7896,3629.8,3629.4,0.25472314]
[1753175931637,2.75514924,3629.6,3629.4,0.25472314]
[1753175931940,5.75512453,3629.6,3629.5,0.25472314]
[1753175932366,6.21172453,3629.6,3629.5,0.25472314]
[1753175932695,0.7896,3629.8,3629.5,0.25472314]
[1753175932992,17.25412301,3631.0,3629.6,0.25472314]
[1753175932993,2.75504862,3629.7,3629.6,0.25472314]
[1753175933490,0.763,3630.3,3629.6,0.39232314]
[1753175933788,2.75503035,3629.8,3629.7,0.25472314]
[1753175933987,5.75503035,3629.8,3629.7,0.25472314]
[1753175934144,0.832,3629.6,3629.0,0.1376]
[1753175934504,2.75575998,3628.8,3628.4,4.637]
[1753175934665,2.75595976,3628.5,3628.4,4.637]
[1753175934864,5.75573192,3628.8,3628.7,0.1376]
[1753175935068,5.75573192,3628.8,3627.8,0.8209]
[1753175935069,2.75639154,3628.0,3627.8,0.8209]
[1753175935379,2.75662364,3627.7,3626.8,2.75723941]
[1753175935577,2.75611167,3628.3,3627.7,0.1376]
[1753175935578,0.4566,3627.9,3627.7,0.1376]
[1753175935744,0.4566,3628.2,3627.7,0.1376]
[1753175935940,2.75649153,3627.8,3627.7,0.1376]
[1753175936356,3.21309153,3627.8,3627.7,0.1376]
[1753175936883,6.21309153,3627.8,3627.7,0.1376]
[1753175937080,2.75702351,3627.1,3627.0,0.001]
[1753175937283,2.75702351,3627.1,3627.0,0.1386]
[1753175937466,2.75702351,3627.1,3627.0,4.7706]
[1753175937663,2.75702351,3627.1,3627.0,0.1386]
[1753175938059,3.21362351,3627.1,3627.0,0.001]
[1753175938260,6.84424897,3627.1,3627.0,0.001]
[1753175938977,2.75763174,3626.3,3626.2,0.1376]
[1753175939172,5.75763174,3626.3,3626.2,0.1376]
[1753175939354,3.0,3626.2,3625.6,4.627]
[1753175939556,2.7578599,3626.0,3625.9,0.1376]
[1753175939756,0.7817,3626.4,3625.9,0.1376]
[1753175939990,2.7578599,3626.0,3625.9,0.1376]
[1753175940290,0.7817,3626.4,3625.9,0.1376]
[1753175940513,2.75649994,3627.8,3625.9,0.1376]
[1753175940514,0.7594,3627.8,3626.1,0.815]
[1753175940797,2.75671849,3627.6,3626.7,2.75726561]
[1753175940969,2.75671849,3627.6,3626.2,5.22578493]
[1753175940970,2.75656752,3627.7,3627.2,0.1376]
[1753175941162,3.0,3627.5,3627.2,0.1376]
[1753175941358,2.7568715,3627.3,3627.2,0.1376]
[1753175941564,0.4566,3627.4,3626.6,4.624]
[1753175941833,2.75702602,3627.1,3626.9,0.1376]
[1753175942092,2.7567195,3627.5,3626.9,0.1376]
[1753175942296,2.75682121,3627.4,3626.9,0.1376]
[1753175942480,3.51591396,3627.8,3626.9,0.7794658]
[1753175942693,2.89394629,3628.0,3627.3,2.8944182]
[1753175942860,0.7594,3628.2,3627.4,0.02756795]
[1753175943059,0.7594,3628.2,3627.6,2.75659966]
[1753175943294,0.7594,3628.7,3627.4,0.4647568]
[1753175943493,3.0,3628.5,3627.6,2.7565924]
[1753175943716,2.75613692,3628.3,3627.4,0.4647568]
[1753175943898,0.7594,3628.7,3627.7,2.75653818]
[1753175944100,3.5152646,3628.7,3627.9,2.7563852]
[1753175944301,0.7594,3628.7,3627.8,4.619]
[1753175944501,0.7594,3628.7,3628.1,2.75624243]
[1753175944813,0.7594,3629.1,3628.1,1.01316671]
[1753175945097,0.7594,3629.1,3628.2,2.7561366]
[1753175945316,21.115,3629.6,3628.1,1.01316671]
[1753175945529,2.75534032,3629.4,3628.7,2.75579062]
[1753175945662,0.7856,3629.5,3628.8,2.75573192]
[1753175945863,0.5509915,3629.8,3628.8,0.27557319]
[1753175946176,0.7856,3629.9,3628.9,0.25624006]
[1753175946377,0.7856,3629.9,3629.0,0.25624006]
[1753175946378,3.54051985,3629.9,3629.0,0.25624006]
[1753175946565,0.7856,3629.9,3629.1,0.25624006]
[1753175946770,2.75535227,3629.3,3629.2,0.25624006]
[1753175947075,6.4874875,3629.3,3629.2,0.25624006]
[1753175947597,7.3127875,3629.3,3629.2,0.25624006]
[1753175947962,2.75623161,3628.2,3627.5,7.36865416]
[1753175948159,2.75626382,3628.1,3627.6,0.25643303]
[1753175948427,2.75604732,3628.4,3627.7,2.75650347]
[1753175948564,5.75589423,3628.6,3627.9,2.75636015]
[1753175948764,3.0,3628.4,3627.5,4.612]
[1753175948965,3.0,3628.4,3627.6,2.75664351]
[1753175949162,2.75619834,3628.2,3627.6,4.611]
[1753175949367,2.75613022,3628.3,3627.6,7.36762877]
[1753175949568,2.7561878,3628.2,3627.6,4.611]
[1753175949768,0.4566,3628.8,3627.6,4.609]
[1753175949978,0.8188,3628.4,3627.6,4.609]
[1753175950308,3.0,3628.5,3627.8,2.75649153]
[1753175950602,2.75625856,3628.2,3627.3,0.8074]
[1753175950807,0.4566,3628.7,3627.7,2.75650744]
[1753175951015,2.75601959,3628.5,3627.8,2.75644346]
[1753175951314,0.8188,3628.8,3627.5,0.4329]
[1753175951526,2.75580904,3628.7,3627.8,2.75647008]
[1753175951674,3.0,3628.7,3627.9,2.7563637]
[1753175951872,3.0,3628.7,3627.5,1.2379]
[1753175951873,3.0,3628.7,3628.0,2.75631355]
[1753175952074,3.0,3628.7,3627.9,2.75639458]
[1753175952301,3.0,3628.6,3627.8,2.7564716]
[1753175952483,2.75543244,3629.2,3628.3,2.75607341]
[1753175952678,2.75564253,3629.0,3628.1,2.75623176]
[1753175952873,3.0,3628.9,3628.5,0.1376]
[1753175953204,3.0,3629.1,3628.5,0.1376]
[1753175953507,1.27676234,3629.2,3628.5,0.1376]
[1753175953714,4.03219585,3629.2,3628.5,2.89350652]
[1753175953921,3.0,3629.1,3628.5,2.89350652]
[1753175954099,0.8223,3629.3,3628.8,2.75570174]
[1753175954298,0.8223,3629.3,3628.9,2.75565188]
[1753175954500,0.8223,3629.3,3628.8,2.89330654]
[1753175954813,0.8223,3629.3,3628.8,2.89330749]
[1753175955016,2.89280187,3629.5,3628.9,2.75563705]
[1753175955215,0.1376,3629.5,3628.8,0.5705]
[1753175955396,3.0,3629.6,3629.1,0.1376]
[1753175955595,3.0,3629.3,3629.1,0.1376]
[1753175956631,3.0,3629.5,3629.1,0.1376]
[1753175956790,3.68060154,3629.8,3629.1,3.32594286]
[1753175956991,3.0,3629.7,3629.1,0.5705]
[1753175957189,2.75509445,3629.7,3629.1,0.5705]
[1753175957617,0.002,3629.3,3629.1,0.1376]
[1753175957946,2.75735369,3629.3,3628.9,0.1376]
[1753175958223,0.002,3629.3,3628.9,0.1376]
[1753175958631,2.75558004,3629.0,3628.9,0.1376]
[1753175958790,0.002,3629.3,3628.9,0.1376]
[1753175958983,2.75736593,3629.3,3628.9,0.1376]
[1753175959188,0.002,3629.3,3629.0,0.4588]
[1753175959423,2.75735227,3629.3,3629.0,0.1376]
[1753175959827,0.002,3629.3,3629.0,0.1376]
[1753175959995,0.002,3629.3,3629.1,0.25644545]
[1753175960332,0.002,3629.3,3629.0,0.1376]
[1753175960333,2.75735227,3629.3,3629.2,0.25644545]
[1753175960630,6.50233932,3629.3,3629.2,0.25644545]
[1753175961196,3.002,3629.3,3629.2,0.25644545]
[1753175961400,0.002,3629.3,3629.2,0.25644545]
[1753175961833,0.002,3629.3,3629.2,0.25641956]
[1753175962295,0.788,3629.8,3629.2,0.39401956]
[1753175962638,2.75522683,3629.5,3629.3,0.25641956]
[1753175962931,5.75522683,3629.5,3629.4,0.25641956]
[1753175963928,6.21072683,3629.5,3629.4,0.25641956]
[1753175964516,3.0,3629.5,3629.4,0.25641956]
[1753175965325,0.1376,3629.7,3629.4,0.25641956]
[1753175965644,6.51437052,3629.6,3629.5,0.25641956]
[1753175965828,8.17046757,3629.6,3629.5,0.25641956]
[1753175966335,6.51437052,3629.6,3629.5,0.25641956]
[1753175966513,3.7592,3629.6,3629.5,0.25641956]
[1753175966835,5.75512453,3629.6,3629.5,0.25641956]
[1753175967034,3.0,3629.6,3629.5,0.25641956]
[1753175967654,3.0,3629.8,3629.5,0.25641956]
[1753175967950,3.52065048,3630.0,3629.6,0.71521956]
[1753175968152,5.75477575,3630.1,3629.7,0.25641956]
[1753175968366,2.75666493,3630.3,3629.8,0.71521956]
[1753175968643,0.002,3630.3,3629.9,0.25641956]
[1753175968833,0.002,3630.3,3630.0,0.25641956]
[1753175969136,0.002,3630.3,3630.1,0.25641956]
[1753175969342,2.75659328,3630.3,3630.2,0.25641956]
[1753175970029,2.75659328,3630.3,3630.2,0.39401956]
[1753175970977,0.002,3630.3,3630.2,0.39401956]
[1753175971642,2.75659328,3630.3,3630.2,0.39401956]
[1753175972314,0.002,3630.3,3630.2,0.39401956]
[1753175972641,0.002,3630.3,3630.2,0.5964]
[1753175972844,0.002,3630.3,3630.2,1.0156175]
[1753175973047,0.002,3630.3,3630.2,0.5964]
[1753175973942,2.75622888,3630.8,3630.2,0.5964]
[1753175973943,0.002,3630.8,3630.2,0.85348787]
[1753175974124,2.75436704,3630.6,3630.3,0.25708787]
[1753175974322,2.75436704,3630.6,3630.5,0.1376]
[1753175974532,2.7562171,3630.8,3630.5,0.39468787]
[1753175974533,2.7543056,3630.7,3630.5,0.39468787]
[1753175974751,2.75622538,3630.8,3630.6,0.25708787]
[1753175974955,2.7542898,3630.7,3630.5,0.1376]
[1753175975140,2.7542898,3630.7,3630.6,0.25698452]
[1753175976150,0.002,3630.8,3630.6,0.71578452]
[1753175976358,0.002,3630.8,3630.7,0.71578452]
[1753175976654,0.002,3630.8,3630.7,0.85338452]
[1753175977151,5.75621394,3630.8,3630.7,0.25698452]
[1753175977364,6.21171394,3630.8,3630.7,0.25698452]
[1753175978132,5.75621394,3630.8,3630.7,0.25698452]
[1753175978531,12.40187943,3630.8,3630.7,0.25698452]
[1753175978732,12.73965017,3630.8,3630.7,1e-08]
[1753175978937,12.40187943,3630.8,3630.7,1e-08]
[1753175980056,11.94637943,3630.8,3630.7,1e-08]
[1753175980222,10.28921394,3630.8,3630.7,1e-08]
[1753175980437,10.74471394,3630.8,3630.7,1e-08]
[1753175980747,5.7542898,3630.7,3628.4,0.8311]
[1753175980967,3.0,3629.3,3628.4,0.8311]
[1753175981164,2.75558004,3629.0,3628.9,0.1376]
[1753175981380,3.0,3629.1,3627.9,0.8047]
[1753175981526,2.7562636,3628.1,3628.0,0.1376]
[1753175981730,2.75641555,3627.9,3627.8,0.001]
[1753175982156,5.75641555,3627.9,3627.8,0.001]
[1753175982357,7.95388346,3627.9,3627.8,0.001]
[1753175982727,6.34951555,3627.9,3627.8,0.001]
[1753175982927,6.72231555,3627.9,3627.8,0.001]
[1753175983865,6.58471555,3627.9,3627.8,0.001]
[1753175984164,7.17781555,3627.9,3627.8,0.001]
[1753175985881,3.1376,3627.9,3627.8,0.001]
[1753175986159,10.28241555,3627.9,3627.8,0.001]
[1753175986647,10.87551555,3627.9,3627.8,0.001]
[1753175986830,12.23869573,3627.9,3627.8,0.001]
[1753175987030,13.06449573,3627.9,3627.8,0.001]
[1753175987226,13.06449573,3627.9,3627.8,1e-08]
[1753175987650,13.61449573,3627.9,3627.8,1e-08]
[1753175987963,6.51547554,3626.9,3626.8,1e-08]
[1753175988154,11.03947554,3626.9,3626.8,1e-08]
[1753175988480,11.49497554,3626.9,3626.8,1e-08]
[1753175989083,6.97097554,3626.9,3626.8,1e-08]
[1753175989263,11.49197554,3626.9,3626.8,1e-08]
[1753175990067,12.91688153,3626.9,3626.8,1e-08]
[1753175990838,12.91588153,3626.9,3626.8,1e-08]
[1753175991641,12.45838153,3626.9,3626.8,1e-08]
[1753175991853,6.51547554,3626.9,3626.8,1e-08]
[1753175992053,11.03347554,3626.9,3626.8,1e-08]
[1753175992250,0.7583,3626.9,3626.8,1e-08]
[1753175992450,7.27403395,3627.1,3626.8,1e-08]
[1753175992652,7.27403464,3627.1,3626.8,1e-08]
[1753175992839,3.0,3627.0,3626.9,0.25520378]
[1753175993064,5.75709953,3627.0,3626.9,0.25520378]
[1753175993272,7.06020432,3627.0,3626.9,0.25520378]
[1753175993442,5.75709953,3627.0,3626.9,0.25520378]
[1753175994043,3.0,3627.0,3626.9,0.25520378]
[1753175994288,4.515,3627.0,3626.9,0.25520378]
[1753175994444,7.26903688,3627.1,3626.9,0.25520378]
[1753175994644,10.26903688,3627.1,3627.0,0.25520378]
[1753175995075,7.512,3627.1,3627.0,0.25520378]
[1753175995962,10.26502351,3627.1,3627.0,0.25520378]
[1753175997195,3.0,3627.1,3627.0,0.25520378]
[1753175997356,4.508,3627.3,3627.0,0.72570378]
[1753175997558,0.7853,3628.0,3627.1,0.25520378]
[1753175997777,2.75566283,3628.9,3627.1,0.25520378]
[1753175997778,6.613,3628.7,3627.2,0.25520378]
[1753175997996,4.505,3628.6,3627.3,0.88124416]
[1753175998294,2.7562489,3628.2,3627.5,2.75670188]
[1753175998453,2.7563466,3628.0,3627.6,0.25480912]
[1753175998653,2.7563466,3628.0,3627.7,0.25480912]
[1753175998889,2.75641555,3627.9,3627.8,0.25480912]
[1753175999404,4.505,3628.2,3627.8,0.25480912]
[1753175999617,3.0,3628.0,3627.9,0.25483944]
[1753175999756,10.25733958,3628.0,3627.9,0.25483944]
[1753176000419,10.25733958,3628.0,3626.3,2.75756165]
[1753176000420,5.75717554,3626.9,3626.3,0.828]
[1753176000700,2.75778384,3626.1,3626.0,1e-08]
[1753176000850,11.07018384,3626.1,3626.0,1e-08]
[1753176001050,11.51498384,3626.1,3626.0,1e-08]
[1753176001307,11.07018384,3626.1,3626.0,1e-08]
[1753176001655,10.25778384,3626.1,3626.0,1e-08]
[1753176002207,5.75778384,3626.1,3626.0,1e-08]
[1753176002407,7.05413165,3626.1,3626.0,1e-08]
[1753176002552,5.75778384,3626.1,3626.0,1e-08]
[1753176003498,0.8154,3626.6,3626.0,1e-08]
[1753176003809,2.75778384,3626.1,3626.0,1e-08]
[1753176004572,3.0,3626.4,3626.0,1e-08]
[1753176004808,3.0,3626.3,3626.0,1e-08]
[1753176005100,2.75778384,3626.1,3626.0,1e-08]
[1753176005453,5.75778384,3626.1,3626.0,1e-08]
[1753176005653,6.57318384,3626.1,3626.0,1e-08]
[1753176007114,5.75778384,3626.1,3626.0,1e-08]
[1753176007289,10.24778384,3626.1,3626.0,1e-08]
[1753176007597,12.34323158,3626.1,3626.0,1e-08]
[1753176008492,3.0,3626.1,3626.0,1e-08]
[1753176008695,5.75778384,3626.1,3626.0,1e-08]
[1753176008899,3.0,3626.1,3626.0,1e-08]
[1753176009106,5.75778384,3626.1,3626.0,1e-08]
[1753176009262,2.75768504,3626.3,3626.0,1e-08]
[1753176009576,3.20258384,3626.1,3626.0,1e-08]
[1753176009900,7.69258384,3626.1,3626.0,1e-08]
[1753176010900,2.75778384,3626.1,3626.0,1e-08]
[1753176011118,7.24878384,3626.1,3626.0,1e-08]
[1753176011330,10.24878384,3626.1,3626.0,1e-08]
[1753176011498,12.89040127,3626.1,3626.0,1e-08]
[1753176012086,12.89040127,3626.1,3626.0,0.25691371]
[1753176012489,12.89040127,3626.1,3626.0,1e-08]
[1753176012704,13.44040127,3626.1,3626.0,1e-08]
[1753176012904,27.94040127,3626.1,3626.0,1e-08]
[1753176013490,22.89940127,3626.1,3626.0,1e-08]
[1753176013727,27.38540127,3626.1,3626.0,1e-08]
[1753176013890,27.93540127,3626.1,3626.0,1e-08]
[1753176014401,3.30831632,3625.4,3625.2,1e-08]
[1753176014600,10.3799924,3625.3,3625.2,1e-08]
[1753176014806,10.8247924,3625.3,3625.2,1e-08]
[1753176015325,18.71827818,3625.3,3625.2,1e-08]
[1753176015525,15.13588718,3625.3,3625.2,1e-08]
[1753176015726,10.3869924,3625.3,3625.2,1e-08]
[1753176015887,10.8317924,3625.3,3625.2,1e-08]
[1753176016512,10.3869924,3625.3,3625.2,1e-08]
[1753176016715,10.3859924,3625.3,3625.2,1e-08]
[1753176017111,10.3849924,3625.3,3625.2,1e-08]
[1753176017324,5.8959924,3625.3,3625.2,1e-08]
[1753176017533,10.3849924,3625.3,3625.2,1e-08]
[1753176018320,0.1376,3625.3,3625.2,1e-08]
[1753176018529,0.7654,3625.9,3625.2,0.47050001]
[1753176018530,2.75822411,3625.6,3625.2,0.47050001]
[1753176018714,3.0,3625.5,3625.3,0.455]
[1753176018918,3.0,3625.5,3625.2,0.13760001]
[1753176019120,3.0,3625.5,3625.3,0.455]
[1753176019633,5.75824577,3625.5,3625.3,0.455]
[1753176019929,3.0,3625.5,3625.3,0.455]
[1753176020234,3.0,3625.6,3625.3,0.455]
[1753176020442,0.1376,3626.0,3625.4,0.455]
[1753176020733,4.485,3625.9,3625.4,0.455]
[1753176021028,3.0,3625.8,3625.5,0.455]
[1753176021244,2.75813476,3625.7,3625.5,0.455]
[1753176021530,3.0,3625.8,3625.2,0.13760001]
[1753176021840,2.7583924,3625.3,3625.2,0.13760001]
[1753176022038,5.7583924,3625.3,3625.2,1e-08]
[1753176022335,5.8959924,3625.3,3625.2,1e-08]
[1753176023493,10.3819924,3625.3,3625.2,1e-08]
[1753176023714,10.3809924,3625.3,3625.2,1e-08]
[1753176024553,0.002,3625.5,3625.2,0.45500001]
[1753176024711,0.002,3625.5,3625.4,0.1376]
[1753176024913,0.002,3625.5,3625.4,3.58748198]
[1753176025127,0.002,3625.5,3625.4,4.04248198]
[1753176025355,0.8078,3627.2,3625.5,0.7791]
[1753176025512,0.1376,3627.1,3626.0,2.7578599]
[1753176025716,0.1376,3627.1,3626.5,2.89507966]
[1753176026050,0.1376,3627.1,3626.5,0.1376]
[1753176026051,2.75910272,3627.0,3626.5,0.1376]
[1753176026268,0.002,3627.0,3626.5,0.5926]
[1753176026470,0.002,3627.0,3626.5,3.60679191]
[1753176026843,0.002,3627.0,3626.5,0.84931225]
[1753176027039,0.002,3627.0,3626.5,4.31878703]
[1753176027773,0.002,3627.0,3626.5,5.12678703]
[1753176027947,0.002,3627.0,3626.5,5.67678703]
[1753176028474,0.002,3627.0,3626.5,9.60778703]
[1753176028669,0.002,3627.0,3626.5,5.12678703]
[1753176028873,0.002,3627.0,3626.5,9.60678703]
[1753176029077,0.002,3627.0,3626.5,10.15678703]
[1753176030068,2.75911184,3627.0,3626.5,1.65731225]
[1753176030278,0.002,3627.0,3626.5,6.13731225]
[1753176030446,3.19185673,3626.6,3626.5,6.13731225]
[1753176031035,3.19185673,3626.6,3626.5,1.65731225]
[1753176031253,5.94926035,3626.6,3626.5,0.39431225]
[1753176032464,3.19185673,3626.6,3626.5,0.39431225]
[1753176032789,5.94926035,3626.6,3626.5,0.39487894]
[1753176033695,5.94926035,3626.6,3626.5,0.25727894]
[1753176034187,16.2666093,3626.6,3626.5,0.25727894]
[1753176034689,10.5568093,3626.6,3626.5,0.25727894]
[1753176035581,3.19185673,3626.6,3626.5,0.25727894]
[1753176035785,5.94926035,3626.6,3626.5,0.25727894]
[1753176035981,3.19185673,3626.6,3626.5,0.25727894]
[1753176036181,5.94926035,3626.6,3626.5,0.25727894]
[1753176036589,3.19185673,3626.6,3626.5,0.25727894]
[1753176036794,3.19185673,3626.6,3626.5,0.71227894]
[1753176037473,3.19185673,3626.6,3626.5,0.84987894]
[1753176038476,5.94926035,3626.6,3626.5,0.84987894]
[1753176038667,5.94926035,3626.6,3626.5,0.5926]
[1753176038873,3.19185673,3626.6,3626.5,0.5926]
[1753176039108,3.19185673,3626.6,3626.5,3.35007966]
[1753176039291,3.19185673,3626.6,3626.5,4.03762014]
[1753176039609,3.19185673,3626.6,3626.5,4.82569493]
[1753176039903,3.19185673,3626.6,3626.5,5.37569493]
[1753176040100,3.19185673,3626.6,3626.5,5.34812014]
[1753176040305,3.19185673,3626.6,3626.5,5.60492854]
[1753176040503,2.86113734,3626.6,3626.5,5.60492854]
[1753176040670,2.86113734,3626.6,3626.5,2.36504888]
[1753176040870,2.86113734,3626.6,3626.5,1.6775084]
[1753176042089,5.61854096,3626.6,3626.5,0.3944084]
[1753176042456,8.61854096,3626.6,3626.5,0.3944084]
[1753176042615,8.61854096,3626.6,3626.5,0.2568084]
[1753176042813,11.01398135,3626.6,3626.5,0.2568084]
[1753176043329,15.48798135,3626.6,3626.5,0.2568084]
[1753176044030,15.48798135,3626.6,3625.2,4.47400001]
[1753176044031,2.75808809,3625.7,3625.2,1e-08]
[1753176044230,2.75834864,3625.4,3625.3,0.1376]
[1753176044530,2.75824686,3625.5,3625.3,0.1376]
[1753176044681,2.75815895,3625.7,3625.4,0.455]
[1753176044877,2.75818034,3625.6,3625.4,0.1376]
[1753176045305,3.0,3626.0,3625.4,0.1376]
[1753176045487,3.0,3626.0,3625.5,0.455]
[1753176045687,2.75801185,3625.9,3625.5,0.455]
[1753176045908,3.0,3626.3,3625.6,0.455]
[1753176046121,3.0,3626.1,3625.8,0.1376]
[1753176046337,3.0,3626.1,3625.8,0.5926]
[1753176046633,5.7576526,3626.3,3625.9,0.455]
[1753176046801,4.6116,3626.4,3625.9,0.455]
[1753176047004,2.75770477,3626.3,3625.9,0.455]
[1753176047904,3.0,3626.4,3626.0,0.5926]
[1753176048108,2.75754978,3626.5,3626.1,0.455]
[1753176048422,7.33713734,3626.6,3626.3,0.1376]
[1753176048423,5.62055113,3626.6,3626.3,0.1376]
[1753176048633,2.86313734,3626.6,3626.3,0.1376]
[1753176048799,2.86313734,3626.6,3626.5,3.51617966]
[1753176048998,2.86313734,3626.6,3626.5,4.08947966]
[1753176049997,2.86313734,3626.6,3626.5,0.1376]
[1753176050435,5.62054096,3626.6,3626.5,0.1376]
[1753176050656,2.5323328,3626.6,3626.5,0.1376]
[1753176050945,5.28973642,3626.6,3626.5,0.1376]
[1753176051319,2.5323328,3626.6,3626.5,0.1376]
[1753176053057,5.28973642,3626.6,3626.5,0.1376]
[1753176053412,2.75772371,3626.2,3625.7,1.218]
[1753176053750,2.75784465,3626.1,3625.8,0.1376]
[1753176053953,2.75788186,3626.0,3625.8,0.1376]
[1753176054158,2.75780929,3626.1,3625.8,0.1376]
[1753176054442,2.75763694,3626.3,3625.8,0.1376]
[1753176054663,2.75763174,3626.3,3625.8,0.1376]
[1753176054867,2.75770779,3626.2,3625.8,0.1376]
[1753176055063,2.7576493,3626.3,3625.8,0.1376]
[1753176055344,2.75769766,3626.3,3625.8,0.1376]
[1753176055508,2.75781056,3626.1,3625.8,0.1376]
[1753176055705,2.75763174,3626.3,3625.8,0.1376]
[1753176055706,0.9223,3626.4,3625.8,0.1376]
[1753176055909,2.75782979,3626.1,3625.8,0.1376]
[1753176056143,2.75773756,3626.2,3625.9,0.2575347]
[1753176056351,2.75764935,3626.3,3626.0,0.2575347]
[1753176056555,0.1376,3626.4,3626.2,0.8022]
[1753176056736,2.7575557,3626.4,3626.3,0.2575347]
[1753176057151,2.75750384,3626.5,3626.3,0.2575347]
[1753176057315,2.75750384,3626.5,3626.4,0.2575347]
[1753176058426,5.75750384,3626.5,3626.4,0.2575347]
[1753176058631,6.99982204,3626.5,3626.4,0.2575347]
[1753176059221,5.89510384,3626.5,3626.4,0.2575347]
[1753176059422,5.75750384,3626.5,3626.4,0.2575347]
[1753176060466,2.75801202,3625.8,3625.7,0.001]
[1753176060771,6.56286849,3625.2,3625.1,1e-08]
[1753176060980,2.75907736,3624.4,3623.9,0.1376]
[1753176061178,0.8044,3623.7,3623.3,0.1376]
[1753176061324,0.8044,3623.7,3622.7,0.13758937]
[1753176061325,5.7602959,3622.8,3622.7,0.13758937]
[1753176061519,11.5043959,3622.8,3622.7,0.13758937]